bitfinex/quotes_BTCUSD_20240701
["timestamp","ask_amount","ask_price","bid_price","bid_amount"]
[1719863949632,0.00841,63201.0,63200.0,1.55453098]
[1719863949835,0.00841,63201.0,63200.0,1.55650895]
[1719863950038,0.00841,63201.0,63200.0,1.57050895]
[1719863950249,0.00841,63201.0,63200.0,1.56990895]
[1719863950461,0.64961,63201.0,63200.0,0.02997797]
[1719863950896,0.29091,63201.0,63200.0,0.01607797]
[1719863951067,0.29091,63201.0,63200.0,0.33664395]
[1719863951264,0.29091,63201.0,63200.0,0.19043898]
[1719863951410,0.09141,63201.0,63200.0,0.19043898]
[1719863951611,0.29091,63201.0,63200.0,0.66512098]
[1719863951866,0.00851,63201.0,63200.0,0.98157598]
[1719863952070,0.00851,63201.0,63200.0,1.29813098]
[1719863952417,0.00851,63201.0,63200.0,1.47807402]
[1719863952612,0.00851,63201.0,63200.0,1.50107402]
[1719863952817,0.00851,63201.0,63200.0,3.50453402]
[1719863953056,0.5582,63222.0,63206.0,1.388587]
[1719863953317,0.5582,63222.0,63206.0,2.00615098]
[1719863953489,0.5582,63222.0,63206.0,2.16725098]
[1719863953699,0.3587,63220.0,63206.0,2.16725098]
[1719863953931,0.1995,63222.0,63206.0,2.16725098]
[1719863953932,0.0796,63223.0,63206.0,2.16725098]
[1719863954095,0.00841,63224.0,63206.0,2.99233598]
[1719863954319,0.00841,63224.0,63206.0,3.0630918]
[1719863954520,0.00841,63224.0,63206.0,2.85957098]
[1719863954721,0.00841,63224.0,63206.0,2.95391208]
[1719863954991,0.00841,63224.0,63206.0,2.85957098]
[1719863955170,0.00841,63224.0,63206.0,2.95491208]
[1719863955380,0.00841,63224.0,63206.0,3.17699598]
[1719863955588,0.00841,63224.0,63223.0,1.38779]
[1719863955800,0.00841,63224.0,63223.0,1.83422898]
[1719863956431,0.3587,63236.0,63223.0,1.83422898]
[1719863956432,0.21807246,63253.0,63243.0,0.2006]
[1719863956549,0.21807246,63253.0,63249.0,0.635415]
[1719863956550,0.20034,63253.0,63249.0,0.635415]
[1719863956753,0.3587,63252.0,63249.0,0.48154398]
[1719863956951,0.3587,63252.0,63244.0,0.0386]
[1719863956952,0.3587,63251.0,63245.0,0.316228]
[1719863957156,0.0589,63247.0,63245.0,0.16233898]
[1719863957349,0.3587,63248.0,63247.0,0.158109]
[1719863957553,0.50024,63253.0,63248.0,0.31621]
[1719863957756,0.35954,63250.0,63249.0,0.158105]
[1719863958012,0.00084,63250.0,63249.0,1.12796398]
[1719863958190,0.00084,63250.0,63249.0,0.96686398]
[1719863958428,0.00084,63250.0,63249.0,0.65065398]
[1719863958820,0.00084,63250.0,63249.0,0.96884179]
[1719863959023,0.00084,63250.0,63249.0,0.97200629]
[1719863959200,0.00084,63250.0,63249.0,1.42571629]
[1719863959403,0.00084,63250.0,63249.0,1.74262629]
[1719863959803,0.00084,63250.0,63249.0,1.72644848]
[1719863960004,0.00084,63253.0,63252.0,1.307782]
[1719863960214,0.1397,63267.0,63252.0,1.307782]
[1719863960215,0.00841,63271.0,63259.0,0.67534]
[1719863960417,0.00841,63271.0,63259.0,1.56999898]
[1719863960611,0.00841,63271.0,63259.0,1.97980131]
[1719863960765,0.00841,63271.0,63259.0,1.90935898]
[1719863960965,0.00841,63271.0,63259.0,1.95611724]
[1719863961329,0.00841,63271.0,63259.0,1.75349898]
[1719863961625,0.2999,63269.0,63259.0,1.25423898]
[1719863961828,0.3587,63266.0,63259.0,1.73149898]
[1719863962126,0.00841,63271.0,63259.0,1.73109898]
[1719863962455,0.00841,63271.0,63264.0,0.871137]
[1719863962578,0.00841,63271.0,63264.0,1.15647598]
[1719863962773,0.00841,63271.0,63264.0,1.78874598]
[1719863963376,0.00841,63271.0,63264.0,1.39181098]
[1719863963786,0.00841,63271.0,63264.0,1.39241098]
[1719863964115,0.00841,63271.0,63264.0,1.39181098]
[1719863964442,0.00841,63271.0,63264.0,1.39331098]
[1719863964654,0.00841,63271.0,63270.0,1.387467]
[1719863964829,0.00841,63271.0,63270.0,2.02701098]
[1719863965007,0.00841,63271.0,63270.0,2.15001098]
[1719863965352,0.00841,63271.0,63270.0,1.83390598]
[1719863965852,0.00841,63271.0,63270.0,1.83844431]
[1719863966060,0.00841,63271.0,63270.0,2.15514931]
[1719863966352,0.00841,63271.0,63270.0,2.15337303]
[1719863966658,0.00841,63271.0,63270.0,2.15257303]
[1719863966853,0.00841,63271.0,63270.0,2.15317303]
[1719863967051,0.00841,63271.0,63270.0,2.15001098]
[1719863967438,0.00841,63271.0,63270.0,2.15101098]
[1719863967604,0.00841,63271.0,63270.0,2.15201098]
[1719863967799,0.00841,63271.0,63270.0,2.15121098]
[1719863968449,0.00841,63279.0,63278.0,1.307027]
[1719863968606,0.00841,63279.0,63278.0,1.73026598]
[1719863968801,0.00841,63279.0,63278.0,1.72966598]
[1719863969006,0.00841,63279.0,63278.0,1.73026598]
[1719863969315,0.00841,63279.0,63278.0,1.72966598]
[1719863970055,0.00841,63279.0,63278.0,1.73808598]
[1719863970259,0.01825239,63279.0,63278.0,1.59098598]
[1719863970624,0.01825239,63279.0,63278.0,1.73808598]
[1719863970839,0.01825239,63279.0,63278.0,1.73908598]
[1719863971185,0.00841,63279.0,63278.0,1.73908598]
[1719863971555,0.00841,63279.0,63278.0,1.7426616]
[1719863971750,0.00841,63279.0,63278.0,1.7420616]
[1719863971955,0.00841,63279.0,63278.0,1.7426616]
[1719863972176,0.00841,63279.0,63278.0,1.5420616]
[1719863972578,0.00841,63279.0,63278.0,1.5452226]
[1719863972775,0.01825239,63279.0,63278.0,1.54314698]
[1719863973008,0.00841,63279.0,63278.0,1.54314698]
[1719863973221,0.00841,63279.0,63278.0,0.648678]
[1719863973420,0.00841,63279.0,63278.0,0.640258]
[1719863973421,0.01825239,63279.0,63278.0,0.640258]
[1719863973643,0.01825239,63279.0,63278.0,1.43472698]
[1719863974236,0.00841,63282.0,63278.0,1.61222698]
[1719863974415,0.1995,63311.0,63301.0,0.2]
[1719863974643,0.1995,63311.0,63302.0,0.1]
[1719863974644,0.3587,63303.0,63302.0,0.1]
[1719863974836,0.47591475,63309.0,63298.0,0.0156]
[1719863974837,0.3587,63300.0,63299.0,0.31596]
[1719863975039,0.3587,63300.0,63298.0,0.0156]
[1719863975040,0.2999,63295.0,63291.0,0.1611]
[1719863975259,0.3587,63297.0,63291.0,0.1611]
[1719863975514,0.2999,63298.0,63296.0,0.315975]
[1719863975638,0.2999,63298.0,63297.0,0.473955]
[1719863975850,0.4992,63302.0,63292.0,0.1]
[1719863976100,0.1476,63308.0,63301.0,0.07934304]
[1719863976265,0.1476,63308.0,63307.0,0.9509]
[1719863976447,0.1476,63308.0,63307.0,1.42975898]
[1719863976645,0.0657,63315.0,63313.0,0.473835]
[1719863977027,1.0,63320.0,63313.0,1.72965398]
[1719863977229,1.0,63320.0,63313.0,1.72955398]
[1719863977641,1.0,63320.0,63313.0,1.73005398]
[1719863977845,1.0,63320.0,63313.0,1.76865398]
[1719863978021,1.0,63320.0,63313.0,2.08454398]
[1719863978223,1.0,63320.0,63313.0,2.40163398]
[1719863978484,1.0,63320.0,63319.0,1.34595304]
[1719863978657,1.0,63320.0,63319.0,1.94775202]
[1719863978915,1.0,63320.0,63319.0,1.86840898]
[1719863979146,1.0,63320.0,63319.0,1.52894898]
[1719863979349,1.0,63320.0,63319.0,1.53092435]
[1719863979465,1.0,63320.0,63319.0,1.53408495]
[1719863979887,1.0,63320.0,63319.0,1.85054495]
[1719863980106,1.0,63320.0,63319.0,1.91695743]
[1719863980319,1.0,63320.0,63319.0,1.71028435]
[1719863980518,1.0,63320.0,63319.0,1.36784898]
[1719863980728,1.0,63320.0,63319.0,1.36904898]
[1719863980932,0.021146,63329.0,63328.0,0.98954]
[1719863981147,0.021146,63329.0,63328.0,1.56769498]
[1719863981148,0.098046,63329.0,63328.0,1.56769498]
[1719863981805,0.021146,63329.0,63328.0,2.70042698]
[1719863982085,0.0084,63335.0,63334.0,1.105251]
[1719863982289,0.0084,63335.0,63334.0,1.84507598]
[1719863982487,0.0084,63335.0,63334.0,1.92557598]
[1719863982718,0.0084,63335.0,63334.0,1.94877598]
[1719863982877,0.0615,63342.0,63334.0,1.94877598]
[1719863982878,0.0615,63342.0,63341.0,1.621479]
[1719863983056,0.0084,63343.0,63341.0,1.621479]
[1719863983057,0.0084,63343.0,63342.0,0.158373]
[1719863983401,0.0084,63343.0,63342.0,1.97878502]
[1719863983609,0.0084,63343.0,63342.0,2.07878502]
[1719863983760,0.0084,63343.0,63342.0,1.79069498]
[1719863983961,0.0084,63343.0,63342.0,2.10644098]
[1719863984161,0.0084,63343.0,63342.0,2.13141479]
[1719863984378,0.0084,63343.0,63342.0,1.71016979]
[1719863984573,0.0084,63343.0,63342.0,1.71026979]
[1719863984800,0.0084,63343.0,63342.0,2.95689453]
[1719863985002,0.0084,63343.0,63342.0,2.95789453]
[1719863985440,0.0662,63362.0,63361.0,1.620429]
[1719863985607,0.0662,63362.0,63361.0,1.881529]
[1719863985807,0.0804,63369.0,63368.0,1.304656]
[1719863986235,0.0804,63369.0,63368.0,1.620272]
[1719863986236,0.1466,63369.0,63368.0,1.620272]
[1719863986438,0.07,63375.0,63374.0,1.104551]
[1719863986637,0.07,63375.0,63374.0,1.420137]
[1719863986840,0.0084,63375.0,63374.0,1.58247598]
[1719863987040,0.0084,63375.0,63374.0,1.204551]
[1719863987239,0.3699,63375.0,63374.0,0.473379]
[1719863987441,0.07,63375.0,63374.0,0.788965]
[1719863987988,0.7288,63375.0,63374.0,1.10642438]
[1719863988168,0.3699,63375.0,63374.0,1.10958293]
[1719863988340,0.07,63375.0,63374.0,1.58750791]
[1719863988546,0.0084,63375.0,63374.0,1.37192191]
[1719863988746,0.0084,63375.0,63374.0,1.68740791]
[1719863988944,0.0084,63375.0,63374.0,1.68780791]
[1719863989143,0.0084,63375.0,63374.0,1.68267598]
[1719863989470,0.0084,63375.0,63374.0,1.85217698]
[1719863989644,0.0084,63375.0,63374.0,1.93292002]
[1719863989851,0.0804,63382.0,63381.0,1.304428]
[1719863990060,0.00839,63384.0,63383.0,0.788855]
[1719863990244,0.9191,63382.0,63381.0,0.2]
[1719863990448,0.9191,63382.0,63360.0,0.157828]
[1719863990449,0.2999,63361.0,63360.0,0.157828]
[1719863990650,0.2999,63361.0,63360.0,0.7]
[1719863990651,0.9994,63361.0,63360.0,0.7]
[1719863990909,0.9994,63361.0,63350.0,0.157853]
[1719863990910,0.7999,63351.0,63350.0,0.157853]
[1719863991106,0.7999,63351.0,63333.0,0.47631475]
[1719863991107,0.8583,63334.0,63333.0,0.63380975]
[1719863991445,0.5602,63334.0,63333.0,0.473686]
[1719863991640,0.9191,63334.0,63333.0,0.473686]
[1719863991844,0.9191,63334.0,63333.0,0.473586]
[1719863992451,0.6588,63325.0,63324.0,0.315832]
[1719863992664,0.6588,63325.0,63324.0,0.47375]
[1719863993079,0.03,63329.0,63319.0,0.0002]
[1719863993080,0.8584,63320.0,63319.0,0.0002]
[1719863993340,0.8583,63315.0,63312.0,0.315891]
[1719863993480,0.8583,63315.0,63310.0,0.157951]
[1719863993481,0.8883,63311.0,63310.0,0.157951]
[1719863993697,0.8583,63311.0,63310.0,0.473856]
[1719863994378,0.1411,63315.0,63304.0,0.315935]
[1719863994379,0.8583,63305.0,63304.0,0.315935]
[1719863994576,0.8583,63305.0,63304.0,0.789837]
[1719863995350,0.4994,63300.0,63299.0,0.31596]
[1719863995513,0.3631223,63287.0,63286.0,0.158012]
[1719863995728,0.3631223,63287.0,63286.0,0.790062]
[1719863995930,0.3589,63289.0,63286.0,0.790062]
[1719863996139,0.1995,63316.0,63306.0,0.0653]
[1719863996465,0.0001,63320.0,63285.0,0.2]
[1719863996466,0.8568223,63298.0,63285.0,0.2]
[1719863996625,0.2984223,63297.0,63296.0,0.789937]
[1719863996803,0.7942223,63291.0,63290.0,0.474006]
[1719863997003,0.7942223,63291.0,63278.0,0.20842]
[1719863997004,0.2984223,63286.0,63278.0,0.20842]
[1719863997215,0.2984223,63290.0,63281.0,0.0004]
[1719863997444,0.2984223,63290.0,63289.0,0.474015]
[1719863997840,0.2984223,63290.0,63289.0,0.790025]
[1719863998067,0.2984223,63286.0,63280.0,0.0004]
[1719863998269,0.2984223,63286.0,63270.0,0.0015777]
[1719863998270,0.6573223,63286.0,63285.0,0.158015]
[1719863998670,0.2984223,63279.0,63278.0,0.00842]
[1719863998873,0.2984223,63270.0,63269.0,0.158055]
[1719863999048,0.2984223,63270.0,63269.0,0.474165]
[1719863999489,0.7211223,63270.0,63269.0,0.474165]
[1719863999811,0.3575223,63268.0,63267.0,0.158058]
[1719864000072,0.2984223,63268.0,63267.0,0.474178]
[1719864000663,0.6573223,63268.0,63267.0,0.474178]
[1719864000805,0.8568223,63268.0,63267.0,0.474178]
[1719864001218,0.8568223,63268.0,63265.0,0.158064]
[1719864001219,0.2984223,63266.0,63265.0,0.158064]
[1719864001415,0.2984223,63266.0,63257.0,0.316167]
[1719864001416,0.2586,63262.0,63261.0,0.158075]
[1719864001617,0.2586,63262.0,63246.0,0.009229]
[1719864001618,0.8568223,63251.0,63246.0,0.009229]
[1719864001828,0.456365,63258.0,63246.0,0.009229]
[1719864001829,0.8568223,63247.0,63246.0,0.009229]
[1719864002234,0.8868223,63247.0,63246.0,0.009229]
[1719864002735,0.8567223,63247.0,63246.0,0.009229]
[1719864003367,0.2983223,63247.0,63246.0,0.483566]
[1719864003573,0.1995,63248.0,63246.0,0.483566]
[1719864003574,0.1995,63248.0,63247.0,0.15811]
[1719864003793,0.4978223,63248.0,63247.0,0.15811]
[1719864003993,0.4978223,63248.0,63247.0,0.47433]
[1719864004213,0.1995,63248.0,63247.0,0.79055]
[1719864004397,0.8567223,63247.0,63246.0,0.009229]
[1719864004602,0.9721523,63247.0,63246.0,0.009229]
[1719864004801,1.3310523,63247.0,63246.0,0.009229]
[1719864005178,1.6472723,63247.0,63246.0,0.009229]
[1719864005320,1.3310523,63247.0,63246.0,0.009229]
[1719864006164,1.57369128,63247.0,63246.0,0.009229]
[1719864006349,1.91991128,63247.0,63246.0,0.009229]
[1719864007448,2.23613128,63247.0,63246.0,0.009229]
[1719864007888,2.23603128,63247.0,63246.0,0.009229]
[1719864008108,1.0017573,63233.0,63232.0,0.47591475]
[1719864008328,1.0017573,63233.0,63225.0,0.167393]
[1719864008329,1.3311093,63226.0,63225.0,0.009229]
[1719864008529,1.6474343,63226.0,63225.0,0.009229]
[1719864008797,1.3311093,63226.0,63225.0,0.009229]
[1719864008997,0.8566223,63226.0,63225.0,0.009229]
[1719864009307,0.8566223,63226.0,63225.0,0.167394]
[1719864009603,0.8566223,63226.0,63225.0,0.009229]
[1719864009820,1.3311093,63226.0,63225.0,0.009229]
[1719864010051,0.8566223,63226.0,63225.0,0.009229]
[1719864011030,1.0146843,63226.0,63225.0,0.009229]
[1719864011239,1.6473343,63226.0,63225.0,0.009229]
[1719864012653,0.8565223,63226.0,63225.0,0.167394]
[1719864012749,0.8565223,63226.0,63225.0,0.483724]
[1719864012750,0.1995,63226.0,63225.0,0.483724]
[1719864012951,0.4976223,63226.0,63225.0,0.800054]
[1719864013135,0.4975223,63226.0,63225.0,0.800054]
[1719864013331,0.2981223,63226.0,63225.0,0.800054]
[1719864013534,0.1994,63226.0,63225.0,1.116784]
[1719864013752,0.4975223,63226.0,63225.0,1.116784]
[1719864013964,0.2980223,63233.0,63228.0,0.0004]
[1719864014159,0.2980223,63233.0,63232.0,0.474442]
[1719864014375,0.6569223,63233.0,63232.0,0.474442]
[1719864014641,0.6569223,63233.0,63232.0,0.790737]
[1719864015088,0.6569223,63227.0,63226.0,0.47646103]
[1719864015288,0.6569223,63227.0,63226.0,0.00197703]
[1719864015289,1.0144823,63227.0,63226.0,0.00197703]
[1719864015491,0.8563223,63227.0,63226.0,0.00197703]
[1719864015896,0.8563223,63227.0,63226.0,0.00514028]
[1719864016187,0.4974223,63227.0,63226.0,0.16330228]
[1719864016398,0.2980223,63227.0,63226.0,0.79595228]
[1719864016600,0.8563223,63227.0,63226.0,0.79595228]
[1719864016941,0.8563223,63227.0,63226.0,0.00514028]
[1719864018445,0.8862223,63227.0,63226.0,0.00316325]
[1719864018603,1.1577823,63227.0,63226.0,0.00316325]
[1719864019121,0.357562,63226.0,63225.0,0.009229]
[1719864019304,1.6770343,63226.0,63225.0,0.009229]
[1719864019758,2.15569828,63226.0,63225.0,0.009229]
[1719864019950,2.15559828,63226.0,63225.0,0.009229]
[1719864020563,1.3306093,63226.0,63225.0,0.009229]
[1719864020916,1.6769343,63226.0,63225.0,0.009229]
[1719864021763,1.83927328,63226.0,63225.0,0.009229]
[1719864021980,2.15559828,63226.0,63225.0,0.009229]
[1719864022285,2.45549828,63226.0,63225.0,0.009229]
[1719864022838,2.15549828,63226.0,63225.0,0.009229]
[1719864023037,2.45549828,63226.0,63225.0,0.009229]
[1719864023820,2.62239828,63226.0,63225.0,0.009229]
[1719864023990,2.62229828,63226.0,63225.0,0.009229]
[1719864024189,2.93862328,63226.0,63225.0,0.009229]
[1719864024391,2.32229828,63226.0,63225.0,0.009229]
[1719864024605,2.12539828,63226.0,63225.0,0.009229]
[1719864024770,1.83907328,63226.0,63225.0,0.009229]
[1719864024948,1.83917328,63226.0,63225.0,0.009229]
[1719864025150,2.15549828,63226.0,63225.0,0.009229]
[1719864025666,1.83917328,63226.0,63225.0,0.009229]
[1719864026039,2.15549828,63226.0,63225.0,0.009229]
[1719864026234,1.6468343,63226.0,63225.0,0.009229]
[1719864026439,1.3605093,63226.0,63225.0,0.009229]
[1719864026676,1.6468343,63226.0,63225.0,0.009229]
[1719864026878,1.0141843,63226.0,63225.0,0.009229]
[1719864027080,1.0141843,63226.0,63225.0,0.483724]
[1719864027081,0.8560223,63226.0,63225.0,0.483724]
[1719864027502,0.8560223,63226.0,63225.0,0.483824]
[1719864028013,0.8560223,63226.0,63225.0,0.167494]
[1719864029054,0.8561223,63226.0,63225.0,0.167494]
[1719864029401,0.4972223,63226.0,63225.0,0.800154]
[1719864029605,0.8561223,63226.0,63225.0,0.800154]
[1719864029812,0.1993,63226.0,63225.0,1.116484]
[1719864030403,0.5582,63226.0,63225.0,1.116484]
[1719864030611,0.1993,63226.0,63225.0,1.116484]
[1719864031104,0.1993,63226.0,63225.0,0.483924]
[1719864031105,0.8561223,63226.0,63225.0,0.483924]
[1719864031821,0.4972223,63226.0,63225.0,0.325759]
[1719864031999,0.8561223,63226.0,63225.0,0.483924]
[1719864032206,0.4972223,63226.0,63225.0,0.483924]
[1719864032604,0.0002,63226.0,63225.0,0.800654]
[1719864032780,0.0002,63226.0,63225.0,1.37932298]
[1719864032984,0.0002,63226.0,63225.0,0.900254]
[1719864034338,0.6570223,63226.0,63225.0,0.32551914]
[1719864034706,0.6570223,63226.0,63225.0,0.483924]
[1719864035139,0.0002,63226.0,63225.0,1.116584]
[1719864035343,0.0002,63226.0,63225.0,1.27892298]
[1719864035547,0.0002,63226.0,63225.0,1.29793207]
[1719864035753,0.0002,63226.0,63225.0,1.27892298]
[1719864036351,0.0002,63226.0,63225.0,1.27932298]
[1719864036718,0.0002,63226.0,63225.0,1.27892298]
[1719864037138,0.6570223,63226.0,63225.0,0.800254]
[1719864037312,0.2981223,63226.0,63225.0,0.800254]
[1719864038316,0.2981223,63226.0,63225.0,0.483924]
[1719864038317,0.6570223,63226.0,63225.0,0.483924]
[1719864038949,0.8561223,63226.0,63225.0,0.009429]
[1719864039890,1.6769343,63226.0,63225.0,0.009429]
[1719864040336,1.3606093,63226.0,63225.0,0.009429]
[1719864040681,1.6769343,63226.0,63225.0,0.009429]
[1719864042327,1.6769343,63226.0,63225.0,0.10330339]
[1719864042945,1.6769343,63226.0,63225.0,0.009429]
[1719864043282,2.15559828,63226.0,63225.0,0.009429]
[1719864043432,2.79279752,63226.0,63225.0,0.009429]
[1719864043640,2.49279752,63226.0,63225.0,0.009429]
[1719864044223,2.49279752,63226.0,63225.0,0.08014004]
[1719864044564,2.17647252,63226.0,63225.0,0.08014004]
[1719864045420,2.17647252,63226.0,63225.0,0.009429]
[1719864046498,2.49289208,63226.0,63225.0,0.009429]
[1719864046874,2.79289208,63226.0,63225.0,0.009429]
[1719864047315,2.79373208,63226.0,63225.0,0.009429]
[1719864047947,2.49373208,63226.0,63225.0,0.12770989]
[1719864048905,1.3524181,63226.0,63225.0,0.12770989]
[1719864049108,1.6777743,63226.0,63225.0,0.009429]
[1719864049319,1.6477743,63226.0,63225.0,0.009429]
[1719864050490,1.69868413,63226.0,63225.0,0.009429]
[1719864050624,2.17734811,63226.0,63225.0,0.009429]
[1719864051034,2.15643828,63226.0,63225.0,0.009429]
[1719864051472,2.17736309,63226.0,63225.0,0.10413217]
[1719864051685,1.6777743,63226.0,63225.0,0.009429]
[1719864052290,0.8569623,63226.0,63225.0,0.009429]
[1719864052695,0.8569623,63226.0,63225.0,0.10413444]
[1719864052938,0.8569623,63226.0,63225.0,0.009429]
[1719864053368,1.3314493,63226.0,63225.0,0.009429]
[1719864053936,1.6777743,63226.0,63225.0,0.009429]
[1719864054185,1.35235094,63226.0,63225.0,0.009429]
[1719864054315,1.3314493,63226.0,63225.0,0.009429]
[1719864054510,1.35235018,63226.0,63225.0,0.009429]
[1719864054920,0.51896318,63226.0,63225.0,0.009429]
[1719864055124,0.51896318,63226.0,63225.0,1.19293602]
[1719864055125,0.00104,63226.0,63225.0,1.19293602]
[1719864055353,0.00104,63226.0,63225.0,1.62803398]
[1719864055558,0.00104,63226.0,63225.0,1.82599602]
[1719864055763,0.00104,63226.0,63225.0,1.82619602]
[1719864055932,0.00104,63226.0,63225.0,2.52460372]
[1719864056311,0.00104,63226.0,63225.0,2.23127372]
[1719864056643,0.00104,63226.0,63225.0,2.54760372]
[1719864058182,0.00104,63226.0,63225.0,2.64222902]
[1719864058394,0.00104,63226.0,63225.0,2.59491637]
[1719864058565,0.00104,63226.0,63225.0,2.51557333]
[1719864059257,0.00104,63226.0,63225.0,2.04625298]
[1719864059459,0.00104,63226.0,63225.0,1.52992298]
[1719864059764,0.00104,63226.0,63225.0,1.53032298]
[1719864060606,0.00104,63226.0,63225.0,1.52992298]
[1719864060817,0.00104,63226.0,63225.0,1.53032298]
[1719864064586,0.00104,63226.0,63225.0,1.52992298]
[1719864065209,0.00104,63226.0,63225.0,1.53032298]
[1719864066387,0.00104,63226.0,63225.0,1.52992298]
[1719864066634,0.00104,63226.0,63225.0,0.900254]
[1719864067020,0.35994,63226.0,63225.0,0.900254]
[1719864067588,0.00104,63226.0,63225.0,0.900254]
[1719864068919,0.35994,63226.0,63225.0,0.900254]
[1719864070359,1.3314493,63226.0,63225.0,0.009429]
[1719864070559,1.77852997,63226.0,63225.0,0.009429]
[1719864070923,1.74852997,63226.0,63225.0,0.009429]
[1719864071141,1.77852997,63226.0,63225.0,0.009429]
[1719864071349,2.09485497,63226.0,63225.0,0.009429]
[1719864072376,1.43220497,63226.0,63225.0,0.009429]
[1719864072578,1.46220497,63226.0,63225.0,0.009429]
[1719864072724,1.77852997,63226.0,63225.0,0.009429]
[1719864072966,1.7577743,63226.0,63225.0,0.009429]
[1719864073129,1.77855858,63226.0,63225.0,0.009429]
[1719864073535,1.74855858,63226.0,63225.0,0.009429]
[1719864073765,1.35223358,63226.0,63225.0,0.009429]
[1719864073951,0.8569623,63226.0,63225.0,0.009429]
[1719864074124,1.6477743,63226.0,63225.0,0.009429]
[1719864074325,0.8569623,63226.0,63225.0,0.009429]
[1719864075161,1.0151243,63226.0,63225.0,0.009429]
[1719864075963,1.6477743,63226.0,63225.0,0.009429]
[1719864076360,1.9640993,63226.0,63225.0,0.009429]
[1719864076560,2.014906,63226.0,63225.0,0.009429]
[1719864076759,1.984906,63226.0,63225.0,0.009429]
[1719864076965,2.014906,63226.0,63225.0,0.009429]
[1719864077564,2.082406,63226.0,63225.0,0.009429]
[1719864079022,2.56106998,63226.0,63225.0,0.009429]
[1719864080361,2.56107141,63226.0,63225.0,0.009429]
[1719864080873,1.35225743,63226.0,63225.0,0.009429]
[1719864081070,1.0151243,63226.0,63225.0,0.009429]
[1719864081455,1.3314493,63226.0,63225.0,0.009429]
[1719864081722,1.6477743,63226.0,63225.0,0.009429]
[1719864082736,1.6777743,63226.0,63225.0,0.009429]
[1719864082954,2.49354886,63226.0,63225.0,0.009429]
[1719864083635,2.49358275,63226.0,63225.0,0.009429]
[1719864083818,2.51263556,63226.0,63225.0,0.009429]
[1719864084014,2.57983556,63226.0,63225.0,0.009429]
[1719864085043,2.87983556,63226.0,63225.0,0.009429]
[1719864085242,2.96083556,63226.0,63225.0,0.009429]
[1719864086748,2.96099124,63226.0,63225.0,0.009429]
[1719864086997,2.66099124,63226.0,63225.0,0.009429]
[1719864087199,2.62096328,63226.0,63225.0,0.009429]
[1719864087490,2.66115689,63226.0,63225.0,0.009429]
[1719864088031,2.00429291,63226.0,63225.0,0.009429]
[1719864088239,1.71796791,63226.0,63225.0,0.009429]
[1719864089118,1.68796791,63226.0,63225.0,0.009429]
[1719864089288,1.05531791,63226.0,63225.0,0.009429]
[1719864089609,1.3314493,63226.0,63225.0,0.009429]
[1719864091280,0.22093793,63226.0,63225.0,0.483924]
[1719864091479,0.22093793,63226.0,63225.0,1.116584]
[1719864091480,0.55904,63226.0,63225.0,1.116584]
[1719864091616,0.00104,63226.0,63225.0,0.800254]
[1719864092001,0.00104,63226.0,63225.0,1.197184]
[1719864092200,0.00104,63226.0,63225.0,1.74115298]
[1719864092407,0.00104,63226.0,63225.0,1.84115298]
[1719864093937,0.00104,63226.0,63225.0,1.84135298]
[1719864094355,0.00104,63226.0,63225.0,2.15976068]
[1719864094556,0.00104,63226.0,63225.0,2.18276068]
[1719864095377,0.00104,63226.0,63225.0,2.31413145]
[1719864097331,0.00104,63226.0,63225.0,2.31503145]
[1719864097669,0.00104,63226.0,63225.0,2.31502395]
[1719864100751,0.00104,63226.0,63225.0,2.38589011]
[1719864101114,0.00104,63226.0,63225.0,2.25452709]
[1719864101314,0.00104,63226.0,63225.0,2.38589033]
[1719864101538,0.00104,63226.0,63225.0,2.3150239]
[1719864101820,0.00104,63226.0,63225.0,2.38588505]
[1719864102384,0.00104,63226.0,63225.0,2.06935505]
[1719864102681,0.00104,63226.0,63225.0,1.86733068]
[1719864103116,0.00104,63226.0,63225.0,1.86713068]
[1719864103772,0.00104,63226.0,63225.0,1.86733068]
[1719864103987,0.00104,63226.0,63225.0,2.2308985]
[1719864104197,0.00104,63226.0,63225.0,2.18366068]
[1719864104394,0.00104,63226.0,63225.0,2.31502357]
[1719864105378,0.00104,63226.0,63225.0,2.36225189]
[1719864105582,0.00104,63226.0,63225.0,1.91455694]
[1719864105794,0.00104,63226.0,63225.0,1.86713068]
[1719864105998,0.00104,63226.0,63225.0,1.93044268]
[1719864107379,0.00104,63226.0,63225.0,1.90744268]
[1719864108236,0.00104,63226.0,63225.0,1.90654268]
[1719864108435,0.00104,63226.0,63225.0,1.90744268]
[1719864109363,0.00104,63226.0,63225.0,1.58863498]
[1719864109579,0.00104,63226.0,63225.0,1.58903498]
[1719864110608,0.00104,63226.0,63225.0,1.44223498]
[1719864112169,0.00104,63226.0,63225.0,1.12590498]
[1719864112292,0.35994,63226.0,63225.0,1.06259298]
[1719864112496,0.00104,63226.0,63225.0,1.06259298]
[1719864113602,0.00104,63226.0,63225.0,1.06299298]
[1719864113801,0.00104,63226.0,63225.0,1.37932298]
[1719864116862,0.00104,63226.0,63225.0,1.69565298]
[1719864117029,0.00104,63226.0,63225.0,1.38140068]
[1719864118554,0.00104,63226.0,63225.0,1.51030473]
[1719864118756,0.00104,63226.0,63225.0,1.06259298]
[1719864119555,0.35994,63226.0,63225.0,1.06259298]
[1719864119873,0.00104,63226.0,63225.0,1.06259298]
[1719864121871,0.00104,63226.0,63225.0,1.14233602]
[1719864122083,0.00104,63226.0,63225.0,1.51070545]
[1719864122506,0.00104,63226.0,63225.0,2.13921315]
[1719864122874,0.00104,63226.0,63225.0,2.16221315]
[1719864123298,0.00104,63226.0,63225.0,2.22789923]
[1719864123501,0.00104,63226.0,63225.0,2.54422923]
[1719864123966,0.00104,63226.0,63225.0,2.22789923]
[1719864124795,0.00104,63226.0,63225.0,2.91989216]
[1719864125000,0.149,63251.0,63250.0,1.106717]
[1719864125203,0.1991,63251.0,63250.0,0.63664598]
[1719864125405,0.1991,63251.0,63250.0,1.26905598]
[1719864125605,0.558,63252.0,63251.0,0.4743]
[1719864125834,0.558,63252.0,63251.0,0.7905]
[1719864125835,0.1991,63252.0,63251.0,0.7905]